bitfinex/quotes_BTCUSD_20220120
["timestamp","ask_amount","ask_price","bid_price","bid_amount"]
[1642687323642,0.92132054,42442.0,42440.0,0.29607741]
[1642687323835,0.92132054,42442.0,42440.0,0.29407741]
[1642687324037,0.528,42442.0,42440.0,0.29667242]
[1642687324435,0.528,42442.0,42440.0,0.29767242]
[1642687325137,0.95987177,42442.0,42440.0,0.30026743]
[1642687325736,0.95987177,42442.0,42440.0,0.30246737]
[1642687325940,0.95987177,42442.0,42433.0,0.30410415]
[1642687326136,0.57917177,42442.0,42440.0,0.00259501]
[1642687326340,0.3807,42441.0,42440.0,0.00259501]
[1642687326538,0.5807,42441.0,42440.0,0.00259501]
[1642687326737,0.628,42441.0,42440.0,0.00259501]
[1642687327188,1.628,42441.0,42440.0,0.00519002]
[1642687327388,0.97723633,42440.0,42434.0,0.00015471]
[1642687327588,1.35326603,42439.0,42434.0,0.00015471]
[1642687327788,1.35326603,42439.0,42424.0,0.00106942]
[1642687327789,0.30954683,42438.0,42427.0,0.00027504]
[1642687327989,0.19740064,42426.0,42425.0,0.00030942]
[1642687328190,0.1473,42437.0,42425.0,0.00290443]
[1642687328390,0.1473,42437.0,42427.0,0.05]
[1642687328589,0.117898,42436.0,42427.0,0.05]
[1642687328788,0.42668878,42432.0,42428.0,0.00025785]
[1642687329188,0.24433009,42430.0,42428.0,0.00025785]
[1642687329589,0.29433009,42430.0,42428.0,0.00025785]
[1642687330290,0.29433009,42430.0,42426.0,0.00029223]
[1642687330489,0.30433009,42430.0,42428.0,0.01]
[1642687330936,0.30433009,42430.0,42429.0,0.00024066]
[1642687331545,0.01,42430.0,42429.0,0.00024066]
[1642687331736,0.058941,42441.0,42429.0,0.00024066]
[1642687331737,0.00056436,42433.0,42429.0,0.00024066]
[1642687331936,0.00123842,42440.0,42425.0,1.3]
[1642687332134,0.00123842,42440.0,42428.0,0.00128363]
[1642687332334,0.021,42433.0,42429.0,0.009]
[1642687332535,0.021,42433.0,42429.0,0.00924066]
[1642687332737,0.021,42433.0,42430.0,0.00022347]
[1642687333640,0.43200912,42433.0,42430.0,0.00022347]
[1642687334041,0.63200912,42433.0,42426.0,0.00029223]
[1642687334239,0.25894493,42433.0,42426.0,0.00029223]
[1642687334438,0.27294493,42433.0,42430.0,0.007]
[1642687334885,0.27294493,42433.0,42431.0,0.00020628]
[1642687335088,0.23188993,42433.0,42431.0,0.00020628]
[1642687335486,0.114,42433.0,42431.0,0.00020628]
[1642687335786,0.2305132,42434.0,42431.0,0.00020628]
[1642687336186,0.2305132,42434.0,42428.0,0.00025785]
[1642687336386,0.037,42434.0,42431.0,0.008]
[1642687336787,0.037,42434.0,42432.0,0.00018909]
[1642687336986,0.037,42434.0,42432.0,0.35653299]
[1642687337186,0.037,42434.0,42432.0,0.35780145]
[1642687337389,0.037,42434.0,42433.0,0.9001719]
[1642687337688,0.00038693,42435.0,42433.0,0.9001719]
[1642687337887,0.19910631,42435.0,42433.0,0.0001719]
[1642687338289,0.24910631,42435.0,42433.0,0.0001719]
[1642687338541,0.05,42434.0,42433.0,0.005]
[1642687338744,0.26671938,42435.0,42433.0,0.005]
[1642687338941,0.26671938,42435.0,42433.0,0.0051719]
[1642687339544,0.60808719,42435.0,42433.0,0.0051719]
[1642687339742,0.59008719,42435.0,42433.0,0.0001719]
[1642687339943,0.24871938,42435.0,42433.0,0.0001719]
[1642687340141,0.24871938,42435.0,42427.0,0.00027504]
[1642687340342,0.27071938,42435.0,42433.0,0.005]
[1642687340944,0.2752585,42434.0,42433.0,0.005]
[1642687341342,0.2752585,42434.0,42433.0,0.0051719]
[1642687341751,0.2752585,42434.0,42433.0,0.0001719]
[1642687341944,0.6059585,42434.0,42433.0,0.0001719]
[1642687342183,0.6059585,42434.0,42427.0,0.00027504]
[1642687342382,0.2252585,42434.0,42427.0,0.00027504]
[1642687342583,0.2582585,42434.0,42433.0,0.004]
[1642687342789,0.3082585,42434.0,42433.0,0.004]
[1642687342986,0.058956,42431.0,42424.0,0.3019]
[1642687343184,0.058956,42431.0,42423.0,0.0011616]
[1642687343185,0.11790987,42430.0,42423.0,0.0011616]
[1642687343487,0.1,42429.0,42425.0,0.00030942]
[1642687343883,0.38960389,42428.0,42423.0,0.00116154]
[1642687344184,0.38960389,42428.0,42424.0,0.00032661]
[1642687344185,0.0473,42427.0,42424.0,0.00032661]
[1642687344388,0.0973,42427.0,42424.0,0.00032661]
[1642687344583,0.10896002,42426.0,42424.0,0.00032661]
[1642687344782,0.15626002,42426.0,42424.0,0.00032661]
[1642687346343,0.15626002,42426.0,42423.0,0.00115857]
[1642687346540,0.15626002,42426.0,42424.0,0.00132661]
[1642687346541,0.22026002,42426.0,42424.0,0.00132661]
[1642687348144,0.15626002,42426.0,42424.0,0.00032661]
[1642687348543,0.15826002,42426.0,42424.0,0.00032661]
[1642687348742,0.15826002,42426.0,42423.0,0.00115926]
[1642687348945,0.15826002,42426.0,42424.0,0.00032661]
[1642687349792,0.25723332,42419.0,42417.0,0.61894809]
[1642687349993,0.30723332,42419.0,42418.0,0.00010314]
[1642687350594,0.30723332,42419.0,42417.0,0.00012033]
[1642687350796,0.05,42418.0,42417.0,0.00012033]
[1642687351997,0.30723332,42419.0,42417.0,0.00012033]
[1642687354339,0.30723332,42419.0,42418.0,0.9307]
[1642687354539,0.30723332,42419.0,42417.0,0.00012033]
[1642687355640,0.30723332,42419.0,42418.0,0.8807]
[1642687357586,0.30643015,42419.0,42418.0,0.8807]
[1642687357786,0.30643015,42419.0,42418.0,0.3807]
[1642687357988,0.30643015,42419.0,42418.0,0.8307]
[1642687360962,0.30643015,42419.0,42418.0,0.3807]
[1642687361158,0.30643015,42419.0,42417.0,0.00012033]
[1642687361760,0.51571085,42419.0,42417.0,0.00012033]
[1642687363160,0.51571085,42419.0,42418.0,0.58574]
[1642687363561,0.51571085,42419.0,42418.0,0.23574]
[1642687363762,0.30643015,42419.0,42418.0,0.23574]
[1642687364064,0.25723332,42419.0,42418.0,0.23574]
[1642687364698,0.69114442,42419.0,42418.0,0.23574]
[1642687364897,0.30723332,42419.0,42418.0,0.23574]
[1642687365098,1.16599378,42419.0,42418.0,0.23574]
[1642687365302,0.78793332,42419.0,42418.0,0.23574]
[1642687365795,0.98958216,42419.0,42418.0,0.23559219]
[1642687366398,0.98958216,42419.0,42417.0,0.00012033]
[1642687366600,1.6718389,42418.0,42417.0,0.00012033]
[1642687366799,0.09414308,42416.0,42410.0,0.00471981]
[1642687366998,0.00120862,42411.0,42410.0,0.00463489]
[1642687367195,0.52278209,42411.0,42410.0,0.00463489]
[1642687367395,1.16889792,42411.0,42410.0,0.00463489]
[1642687367594,1.49293363,42411.0,42402.0,8.492e-05]
[1642687367801,0.20847202,42403.0,42401.0,0.01008492]
[1642687367997,0.30847202,42403.0,42401.0,0.01]
[1642687368195,0.65108647,42403.0,42401.0,0.01]
[1642687368643,0.66108647,42403.0,42401.0,0.01]
[1642687369050,0.31847202,42403.0,42401.0,0.01]
[1642687369241,0.11,42403.0,42401.0,0.01]
[1642687369444,0.01,42403.0,42401.0,0.01]
[1642687369642,0.01,42403.0,42402.0,1.6807]
[1642687369841,0.0973,42405.0,42402.0,1.68078492]
[1642687370041,0.0473,42411.0,42403.0,8.492e-05]
[1642687370243,0.0473,42411.0,42408.0,0.23424229]
[1642687370447,0.0473,42411.0,42409.0,0.34953894]
[1642687370644,0.0473,42411.0,42409.0,0.34976138]
[1642687370841,0.0473,42411.0,42410.0,1.00012033]
[1642687371044,0.058974,42414.0,42410.0,1.00020525]
[1642687371345,0.058974,42414.0,42411.0,0.00018806]
[1642687371544,0.11917772,42417.0,42411.0,0.00018806]
[1642687371748,0.0005188,42422.0,42412.0,8.595e-05]
[1642687372212,6.876e-05,42421.0,42418.0,0.36016869]
[1642687373014,6.876e-05,42421.0,42417.0,0.24601771]
[1642687374010,6.876e-05,42421.0,42417.0,0.24129971]
[1642687374510,6.876e-05,42421.0,42417.0,0.064]
[1642687375013,0.32232825,42418.0,42417.0,0.064]
[1642687375218,0.3807,42418.0,42417.0,0.064]
[1642687375413,0.30422064,42418.0,42417.0,0.064]
[1642687375814,0.30422064,42418.0,42414.0,0.00114698]
[1642687376044,0.30422064,42418.0,42412.0,0.00017087]
[1642687376249,0.30422064,42418.0,42414.0,0.00114697]
[1642687377043,0.20422064,42418.0,42414.0,0.00114697]
[1642687377344,0.20422064,42418.0,42414.0,0.00116057]
[1642687377345,0.25422064,42418.0,42414.0,0.00116057]
[1642687378044,0.30422064,42418.0,42414.0,0.00116057]
[1642687378444,0.30422064,42418.0,42413.0,6.876e-05]
[1642687378643,0.30422064,42418.0,42414.0,0.00116057]
[1642687379445,0.30422064,42418.0,42414.0,0.24116057]
[1642687380285,0.21206896,42416.0,42414.0,0.24116057]
[1642687380486,0.26206896,42416.0,42414.0,0.24916057]
[1642687380687,0.05,42416.0,42414.0,0.248]
[1642687380890,0.108967,42417.0,42414.0,0.248]
[1642687381086,0.108967,42417.0,42414.0,0.24808492]
[1642687381489,0.05,42417.0,42414.0,0.24808492]
[1642687381884,0.05,42417.0,42414.0,0.24008492]
[1642687382086,0.05,42417.0,42414.0,0.24]
[1642687382286,0.05,42417.0,42414.0,0.24008492]
[1642687382485,0.041,42417.0,42414.0,0.24008492]
[1642687382686,0.041,42417.0,42414.0,0.24708492]
[1642687383444,0.041,42417.0,42414.0,0.247]
[1642687383640,0.041,42417.0,42414.0,0.24708492]
[1642687383839,0.25422064,42418.0,42414.0,0.24008492]
[1642687384039,0.05,42418.0,42414.0,0.24]
[1642687384240,0.108964,42419.0,42414.0,0.24]
[1642687384440,0.058964,42419.0,42414.0,0.24]
[1642687384639,0.092,42418.0,42414.0,0.24815819]
[1642687385040,0.092,42418.0,42414.0,0.45757103]
[1642687385642,0.092,42418.0,42414.0,0.45641284]
[1642687385844,0.05,42418.0,42414.0,0.45057103]
[1642687386246,0.058964,42419.0,42414.0,0.45057103]
[1642687386544,0.058964,42419.0,42414.0,0.45757103]
[1642687386545,0.042,42418.0,42414.0,0.45757103]
[1642687386745,0.042,42418.0,42414.0,0.45641284]
[1642687386945,0.092,42418.0,42414.0,0.45757103]
[1642687387790,0.092,42418.0,42414.0,0.45057103]
[1642687387993,6.876e-05,42421.0,42414.0,0.44941284]
[1642687388191,6.876e-05,42421.0,42414.0,0.45057087]
[1642687388391,0.05902976,42421.0,42414.0,0.45057087]
[1642687388598,0.10102976,42421.0,42414.0,0.45757087]
[1642687389392,0.10102976,42421.0,42414.0,0.45757088]
[1642687389593,0.04206876,42421.0,42414.0,0.45757088]
[1642687389794,6.876e-05,42421.0,42414.0,0.45057088]
[1642687390093,0.22914438,42416.0,42414.0,0.24115804]
[1642687390292,0.22914438,42416.0,42414.0,0.24]
[1642687390494,0.22914438,42416.0,42414.0,0.24115804]
[1642687390693,0.22914438,42416.0,42414.0,0.24815804]
[1642687390694,0.37114438,42416.0,42414.0,0.24815804]
[1642687390944,0.21160772,42415.0,42414.0,0.24815804]
[1642687391544,0.21160772,42415.0,42414.0,0.247]
[1642687391844,0.26160772,42415.0,42414.0,0.24]
[1642687392444,0.26160772,42415.0,42414.0,0.59]
[1642687392644,0.30260772,42415.0,42414.0,0.597]
[1642687393845,0.26160772,42415.0,42414.0,0.59]
[1642687394446,0.26160772,42415.0,42414.0,0.89]
[1642687394685,0.30260772,42415.0,42414.0,0.897]
[1642687395086,0.091,42415.0,42414.0,0.897]
[1642687395727,0.041,42415.0,42414.0,1.347]
[1642687395787,0.041,42415.0,42414.0,1.7277]
[1642687395987,0.05,42420.0,42414.0,1.7207]
[1642687396193,0.05,42420.0,42416.0,0.22270785]
[1642687396388,0.05,42420.0,42416.0,0.54332988]
[1642687396688,0.084,42420.0,42416.0,0.22270785]
[1642687396887,0.034,42420.0,42416.0,0.22270785]
[1642687397289,0.034,42420.0,42416.0,0.2226348]
[1642687397888,6.876e-05,42421.0,42416.0,0.2226348]
[1642687398750,0.04306876,42421.0,42416.0,0.2286348]
[1642687398946,0.04306876,42421.0,42417.0,0.428]
[1642687399142,0.04306876,42421.0,42420.0,0.00122593]
[1642687399344,0.04306876,42421.0,42420.0,1.35229693]
[1642687399941,6.876e-05,42421.0,42420.0,1.25168018]
[1642687400539,6.876e-05,42421.0,42420.0,1.26268018]
[1642687401941,6.876e-05,42421.0,42420.0,1.25168018]
[1642687402694,6.876e-05,42421.0,42420.0,1.26368018]
[1642687403899,6.876e-05,42421.0,42420.0,1.25168018]
[1642687404696,6.876e-05,42421.0,42420.0,1.28145018]
[1642687404897,6.876e-05,42421.0,42420.0,1.26968018]
[1642687405098,6.876e-05,42421.0,42420.0,2.88923586]
[1642687405298,6.876e-05,42421.0,42420.0,2.52568018]
[1642687405938,6.876e-05,42421.0,42420.0,0.19968018]
[1642687406140,6.876e-05,42421.0,42417.0,0.3523]
[1642687406341,6.876e-05,42421.0,42418.0,0.380673]
[1642687406544,6.876e-05,42421.0,42419.0,0.0473]
[1642687408539,6.876e-05,42421.0,42420.0,0.830673]
[1642687410306,6.876e-05,42421.0,42419.0,0.0573]
[1642687410503,6.876e-05,42421.0,42419.0,0.0473]
[1642687410698,6.876e-05,42421.0,42420.0,0.661]
[1642687411099,6.876e-05,42421.0,42420.0,1.041673]
[1642687411302,6.876e-05,42421.0,42420.0,1.603443]
[1642687411502,6.876e-05,42421.0,42420.0,1.591673]
[1642687411904,6.876e-05,42421.0,42420.0,1.041673]
[1642687412201,6.876e-05,42421.0,42420.0,1.030673]
[1642687412402,6.876e-05,42421.0,42420.0,1.480673]
[1642687412801,6.876e-05,42421.0,42420.0,1.492673]
[1642687413001,6.876e-05,42421.0,42420.0,1.042673]
[1642687413444,6.876e-05,42421.0,42420.0,1.342673]
[1642687414047,6.876e-05,42421.0,42420.0,1.330673]
[1642687414748,6.876e-05,42421.0,42420.0,1.342673]
[1642687414948,6.876e-05,42421.0,42420.0,1.042673]
[1642687415948,6.876e-05,42421.0,42420.0,1.030673]
[1642687416149,0.1,42428.0,42421.0,1.68125602]
[1642687416348,0.1,42428.0,42421.0,1.48157902]
[1642687416579,0.00010314,42427.0,42421.0,1.48157902]
[1642687416747,0.00010314,42427.0,42421.0,1.48957902]
[1642687416953,8.595e-05,42426.0,42421.0,1.48957902]
[1642687417393,6.876e-05,42425.0,42421.0,1.48957902]
[1642687417594,6.876e-05,42425.0,42421.0,1.058]
[1642687417995,6.876e-05,42425.0,42421.0,1.05]
[1642687418195,0.05902176,42425.0,42421.0,1.05]
[1642687418596,0.05902176,42425.0,42421.0,1.058]
[1642687418995,0.05902176,42425.0,42422.0,0.380673]
[1642687419398,6.876e-05,42425.0,42423.0,0.37762844]
[1642687419601,6.876e-05,42425.0,42424.0,1.499641]
[1642687419797,0.79137632,42437.0,42425.0,1.3]
[1642687420099,0.335819,42444.0,42433.0,0.00122741]
[1642687420100,0.79137632,42440.0,42433.0,0.00122741]
[1642687420298,1.02027587,42440.0,42434.0,0.29069377]
[1642687420496,1.02053372,42440.0,42434.0,0.29069377]
[1642687420696,0.00206663,42439.0,42434.0,0.29069377]
[1642687421140,0.00022347,42438.0,42434.0,0.29069377]
[1642687421341,0.00022347,42438.0,42435.0,0.380673]
[1642687421546,0.17679557,42444.0,42435.0,0.380673]
[1642687421547,0.00020628,42437.0,42436.0,0.04853056]
[1642687421743,0.00020628,42437.0,42436.0,1.60208756]
[1642687421941,0.00020628,42437.0,42436.0,1.61385756]
[1642687422145,0.00051678,42438.0,42437.0,1.3]
[1642687422342,0.00051678,42438.0,42437.0,2.98519513]
[1642687422641,0.00051678,42438.0,42437.0,3.00219513]
[1642687422840,0.001,42446.0,42443.0,0.24107085]
[1642687423040,0.001,42446.0,42444.0,0.199406]
[1642687423041,0.00306684,42446.0,42444.0,0.199406]
[1642687423643,0.00306684,42446.0,42444.0,1.45663757]
[1642687423840,0.00306684,42446.0,42445.0,2.56777]
[1642687424040,0.001,42446.0,42445.0,2.995643]
[1642687424242,0.00115471,42446.0,42445.0,2.995643]
[1642687424444,0.00115471,42446.0,42445.0,2.99694178]
[1642687424699,0.00115471,42446.0,42445.0,3.44298325]
[1642687425089,0.00115471,42446.0,42445.0,3.01094178]
[1642687425291,0.00115471,42446.0,42445.0,5.04873863]
[1642687425888,0.00115471,42446.0,42445.0,5.03473863]
[1642687426490,0.00115471,42446.0,42445.0,5.02296863]
[1642687426696,0.00115471,42446.0,42445.0,5.05473863]
[1642687427294,0.00115471,42446.0,42445.0,2.48566985]
[1642687427491,0.00115471,42446.0,42445.0,0.447873]
[1642687427690,0.00115471,42446.0,42445.0,0.02]
[1642687427893,0.00115471,42446.0,42437.0,0.919]
[1642687428092,0.00115471,42446.0,42435.0,0.2986]
[1642687428093,0.058933,42445.0,42435.0,0.2986]
[1642687428291,0.23427575,42440.0,42433.0,1.16112095]
[1642687428542,0.23427575,42440.0,42434.0,0.380673]
[1642687428746,0.23427575,42440.0,42435.0,0.078]
[1642687429043,0.23427575,42440.0,42436.0,0.199455]
[1642687429044,0.00051678,42439.0,42436.0,0.199455]
[1642687430044,0.23427575,42440.0,42436.0,0.199455]
[1642687430243,0.23479254,42440.0,42434.0,1.83994133]
[1642687430445,0.23479254,42440.0,42435.0,0.380673]
[1642687430646,0.33479254,42440.0,42436.0,0.24]
[1642687431244,0.33427575,42440.0,42436.0,0.24]
[1642687431446,0.33479254,42440.0,42436.0,0.24]
[1642687431845,0.28479254,42440.0,42436.0,0.24]
[1642687432295,0.28427575,42440.0,42436.0,0.24]
[1642687432498,0.28479254,42440.0,42436.0,0.24]
[1642687432694,0.28479254,42440.0,42436.0,0.296]
[1642687432896,0.33479254,42440.0,42436.0,0.296]
[1642687433495,0.28427575,42440.0,42436.0,0.296]
[1642687433695,0.33479254,42440.0,42436.0,0.296]
[1642687433896,0.33479254,42440.0,42436.0,0.24]
[1642687434095,0.23479254,42440.0,42436.0,0.24]
[1642687434498,0.00051679,42440.0,42436.0,0.24]
[1642687434799,0.058933,42441.0,42436.0,0.28]
[1642687435003,0.00051679,42440.0,42436.0,0.28]
[1642687436048,0.18765085,42444.0,42436.0,0.24]
[1642687436249,0.00051679,42440.0,42436.0,0.24]
[1642687436850,0.00051679,42440.0,42437.0,0.380673]
[1642687437150,0.00010314,42443.0,42437.0,0.380673]
[1642687437354,0.00051679,42440.0,42436.0,0.26]
[1642687437556,0.00037266,42440.0,42436.0,0.26]
[1642687437751,0.00037266,42440.0,42437.0,0.380673]
[1642687438152,0.00037266,42440.0,42437.0,0.74250762]
[1642687438353,8.595e-05,42442.0,42437.0,0.380673]
[1642687438552,8.595e-05,42442.0,42441.0,0.70169374]
[1642687438756,0.62362144,42446.0,42441.0,0.70169374]
[1642687438757,0.001,42446.0,42441.0,0.70169374]
[1642687438955,0.051,42446.0,42441.0,0.70169374]
[1642687439157,0.00013752,42445.0,42441.0,0.70169374]
[1642687439356,0.00013752,42445.0,42443.0,0.35395174]
[1642687439554,0.001,42446.0,42444.0,1.099335]
[1642687439811,0.001,42446.0,42445.0,1.65314996]
[1642687440011,0.001,42446.0,42445.0,2.03379396]
[1642687440315,0.00115471,42446.0,42445.0,2.03379396]
[1642687440710,0.00115471,42446.0,42445.0,2.04779396]
[1642687441913,0.00115471,42446.0,42445.0,2.05956396]
[1642687442213,0.00051591,42448.0,42446.0,1.3]
[1642687442512,0.00051591,42448.0,42447.0,1.89709505]
[1642687443112,0.00010315,42452.0,42447.0,1.90886505]
[1642687443311,0.00010315,42452.0,42450.0,0.23975358]
[1642687443542,8.596e-05,42451.0,42450.0,0.23975358]
[1642687443944,8.596e-05,42451.0,42450.0,1.33975358]
[1642687444144,8.596e-05,42451.0,42450.0,1.72042658]
[1642687444744,8.596e-05,42451.0,42450.0,0.62842658]
[1642687444945,8.596e-05,42451.0,42450.0,0.388673]
[1642687445752,0.18781686,42451.0,42450.0,0.008]
[1642687445948,0.00604914,42451.0,42437.0,1.1787]
[1642687446148,0.05604914,42451.0,42437.0,1.1787]
[1642687446346,0.09146021,42448.0,42441.0,8.595e-05]
[1642687446545,0.22804349,42449.0,42441.0,8.595e-05]
[1642687446947,0.05,42446.0,42440.0,0.049]
[1642687447193,0.23870209,42441.0,42440.0,0.049]
[1642687447597,0.23870209,42441.0,42440.0,0.04910314]
[1642687448100,0.23870209,42441.0,42440.0,0.00010314]
[1642687448294,0.64907627,42441.0,42440.0,0.00010314]
[1642687448597,0.23870209,42441.0,42434.0,0.00020628]
[1642687448796,0.23870209,42441.0,42440.0,0.005]
[1642687449196,0.50379431,42444.0,42440.0,0.005]
[1642687449399,0.00051587,42443.0,42440.0,0.005]
[1642687449594,0.00051587,42443.0,42441.0,8.595e-05]
[1642687450396,0.19898631,42446.0,42438.0,0.00013752]
[1642687450599,0.00051588,42444.0,42441.0,0.22693103]
[1642687450796,0.00051588,42444.0,42441.0,0.23093103]
[1642687451057,0.00051588,42444.0,42442.0,6.876e-05]
[1642687451566,6.877e-05,42450.0,42442.0,6.876e-05]
[1642687451754,0.00051589,42445.0,42442.0,6.876e-05]
[1642687451955,0.00051589,42445.0,42443.0,0.380673]
[1642687452551,0.00051589,42445.0,42443.0,0.375673]
[1642687452752,6.877e-05,42450.0,42443.0,1.644673]
[1642687452952,6.877e-05,42450.0,42444.0,0.0012204]
[1642687452953,0.0005159,42446.0,42444.0,0.0012204]
[1642687453156,0.0005159,42446.0,42445.0,1.25822978]
[1642687453555,0.0005159,42446.0,42445.0,1.30822978]
[1642687453752,0.0005159,42446.0,42445.0,1.60822978]
[1642687453964,4.877e-05,42455.0,42445.0,1.60822978]
[1642687454154,4.877e-05,42455.0,42451.0,0.57129283]
[1642687454155,0.00206333,42454.0,42451.0,0.57129283]
[1642687454354,0.00213209,42454.0,42452.0,0.375601]
[1642687455197,6.876e-05,42454.0,42452.0,0.375601]
[1642687455597,6.876e-05,42454.0,42452.0,0.72523036]
[1642687455803,6.876e-05,42454.0,42452.0,0.425601]
[1642687456905,0.00306357,42461.0,42452.0,0.425601]
[1642687456906,0.00230014,42462.0,42453.0,1.25]
[1642687457098,0.00230014,42462.0,42453.0,1.60139335]
[1642687457297,6.876e-05,42458.0,42453.0,1.25]
[1642687457697,6.876e-05,42458.0,42456.0,0.35138962]
[1642687458943,6.876e-05,42458.0,42457.0,2.05518878]
[1642687459145,6.876e-05,42458.0,42457.0,1.680601]
[1642687459343,6.876e-05,42458.0,42457.0,1.692371]
[1642687460344,6.876e-05,42458.0,42457.0,1.680601]
[1642687460543,6.876e-05,42458.0,42457.0,1.920601]
[1642687460949,6.876e-05,42458.0,42457.0,1.929601]
[1642687461544,6.876e-05,42458.0,42457.0,1.979601]
[1642687462194,6.876e-05,42458.0,42457.0,1.970601]
[1642687462794,6.876e-05,42458.0,42457.0,1.979601]
[1642687463997,6.876e-05,42458.0,42457.0,0.629601]
[1642687464198,6.876e-05,42458.0,42457.0,0.620601]
[1642687464795,6.876e-05,42458.0,42457.0,0.245]
[1642687464996,6.876e-05,42458.0,42457.0,0.625601]
[1642687465797,6.876e-05,42458.0,42457.0,1.125601]
[1642687466660,6.876e-05,42458.0,42457.0,0.620601]
[1642687466864,6.876e-05,42458.0,42457.0,0.245]
[1642687467264,6.876e-05,42458.0,42457.0,0.23343026]
[1642687468062,6.876e-05,42458.0,42457.0,0.22843026]
[1642687468662,6.876e-05,42458.0,42457.0,0.52843026]
[1642687468872,6.876e-05,42458.0,42457.0,0.52943026]
[1642687469261,6.876e-05,42458.0,42457.0,0.22943026]
[1642687469706,6.876e-05,42458.0,42457.0,1.26003126]
[1642687470105,6.876e-05,42458.0,42457.0,1.25903126]
[1642687470707,6.876e-05,42458.0,42457.0,0.60903126]
[1642687470908,6.876e-05,42458.0,42457.0,0.23643026]
[1642687471309,6.876e-05,42458.0,42457.0,0.66703126]
[1642687471708,6.876e-05,42458.0,42457.0,1.11703126]
[1642687472109,6.876e-05,42458.0,42457.0,1.47033945]
[1642687472310,6.876e-05,42458.0,42457.0,1.10903126]
[1642687473010,6.876e-05,42458.0,42457.0,1.06703126]
[1642687474344,6.876e-05,42458.0,42457.0,1.05903126]
[1642687474945,6.876e-05,42458.0,42457.0,1.06703126]
[1642687475147,6.876e-05,42458.0,42457.0,0.61703126]
[1642687475548,0.24247398,42458.0,42457.0,0.61703126]
[1642687475746,0.24247398,42458.0,42457.0,0.23643026]
[1642687476145,0.24247398,42458.0,42457.0,0.22843026]
[1642687476345,6.876e-05,42458.0,42457.0,0.22843026]
[1642687476545,6.876e-05,42458.0,42457.0,0.67843026]
[1642687476949,6.876e-05,42458.0,42457.0,0.68143026]
[1642687477198,6.876e-05,42458.0,42457.0,0.23143026]
[1642687477398,0.18608117,42458.0,42457.0,0.23143026]
[1642687478208,0.18608117,42458.0,42457.0,0.22843026]
[1642687478209,0.80228767,42458.0,42457.0,0.22843026]
[1642687478402,0.89279484,42458.0,42457.0,0.22843026]
[1642687478700,1.74279484,42458.0,42457.0,0.22843026]
[1642687478901,1.65825085,42458.0,42457.0,0.22843026]
[1642687479600,1.74283664,42458.0,42457.0,0.22843026]
[1642687480202,1.78934959,42458.0,42457.0,0.22843026]
[1642687480404,1.69103409,42458.0,42457.0,0.22843026]
[1642687480803,0.94103409,42458.0,42457.0,0.22843026]
[1642687481052,0.77677796,42458.0,42457.0,0.22843026]
[1642687481251,0.69219217,42458.0,42457.0,0.22843026]
[1642687481454,0.50617976,42458.0,42457.0,0.22843026]
[1642687481655,0.42796976,42458.0,42457.0,0.22843026]
[1642687482952,0.38066976,42458.0,42457.0,0.22843026]
[1642687484806,6.876e-05,42458.0,42457.0,0.22843026]
[1642687485604,6.876e-05,42458.0,42457.0,1.12843026]
[1642687485804,6.876e-05,42458.0,42457.0,0.22843026]
[1642687486406,6.876e-05,42458.0,42457.0,0.52843026]
[1642687487005,6.876e-05,42458.0,42457.0,0.53043026]
[1642687487408,6.876e-05,42458.0,42457.0,0.98043026]
[1642687487607,6.876e-05,42458.0,42457.0,0.98036468]
[1642687487809,6.876e-05,42458.0,42457.0,1.36096568]
[1642687488106,6.876e-05,42458.0,42457.0,1.35896568]
[1642687488306,6.876e-05,42458.0,42457.0,0.22836468]
[1642687488554,6.876e-05,42458.0,42457.0,0.52836468]
[1642687488960,6.876e-05,42458.0,42457.0,0.53336468]
[1642687490055,6.876e-05,42458.0,42457.0,0.52836468]
[1642687490954,6.876e-05,42458.0,42457.0,0.53436468]
[1642687491758,6.876e-05,42458.0,42457.0,0.23436468]
[1642687492200,6.876e-05,42458.0,42457.0,0.22836468]
[1642687493002,6.876e-05,42458.0,42457.0,0.23536468]
[1642687493404,6.876e-05,42458.0,42457.0,0.53536468]
[1642687494102,6.876e-05,42458.0,42457.0,0.52836468]
[1642687494908,6.876e-05,42458.0,42457.0,0.53536468]
[1642687495302,6.876e-05,42458.0,42457.0,0.88536468]
[1642687495951,6.876e-05,42458.0,42457.0,1.26596568]
[1642687496150,6.876e-05,42458.0,42457.0,1.25896568]
[1642687496949,6.876e-05,42458.0,42457.0,1.26696568]
[1642687497557,6.876e-05,42458.0,42457.0,1.63096728]
[1642687497751,6.876e-05,42458.0,42457.0,1.67826728]
[1642687497950,6.876e-05,42458.0,42457.0,1.31546759]
[1642687498153,6.876e-05,42458.0,42457.0,1.30746759]
[1642687498352,6.876e-05,42458.0,42457.0,1.95746759]
[1642687498951,0.002,42464.0,42457.0,1.97246759]
[1642687499151,0.058896,42467.0,42466.0,0.2069659]
[1642687499353,0.108896,42467.0,42466.0,0.2069659]
[1642687499552,0.058896,42467.0,42466.0,0.2069659]
[1642687499818,0.108896,42467.0,42466.0,0.2069659]
[1642687500015,0.058896,42467.0,42466.0,0.2069659]
[1642687500223,0.108896,42467.0,42466.0,0.2069659]
[1642687501014,0.489497,42467.0,42466.0,0.001]
[1642687501218,0.480601,42467.0,42466.0,0.001]
[1642687501414,0.480601,42467.0,42459.0,0.00081771]
[1642687501415,0.55,42466.0,42459.0,0.00081771]
[1642687501613,0.158911,42466.0,42459.0,0.00081771]
[1642687501814,0.21032844,42466.0,42459.0,0.00081771]
[1642687502015,0.19103051,42465.0,42454.0,0.37638208]
[1642687502313,0.19103051,42465.0,42459.0,0.00081771]
[1642687502314,0.05891,42462.0,42459.0,0.00081771]
[1642687502721,0.45459865,42465.0,42459.0,0.00081771]
[1642687502913,0.45459865,42465.0,42460.0,6.877e-05]
[1642687503114,0.44863547,42465.0,42460.0,6.877e-05]
[1642687503555,0.117819,42462.0,42460.0,6.877e-05]
[1642687504556,0.00049606,42465.0,42459.0,0.00120418]
[1642687504756,0.00049606,42465.0,42459.0,0.00077275]
[1642687504955,6.877e-05,42464.0,42460.0,0.006]
[1642687506158,6.877e-05,42464.0,42456.0,0.52758417]
[1642687506356,0.117815,42463.0,42459.0,0.03]
[1642687506656,0.167815,42463.0,42459.0,0.03]
[1642687506857,0.21099588,42461.0,42459.0,0.03]
[1642687507203,0.21099588,42461.0,42459.0,0.038]
[1642687507603,0.05,42460.0,42459.0,0.038]
[1642687507906,0.05,42460.0,42459.0,0.028]
[1642687508304,0.05,42460.0,42459.0,0.400601]
[1642687508502,0.26820249,42463.0,42459.0,0.400601]
[1642687508702,0.16820249,42463.0,42459.0,0.02]
[1642687508902,0.16820249,42463.0,42459.0,0.025]